Workbook

Sheet code
A1: Affectation | B1: Portage | C1: statut | D1: contrat
A2: 4 bis avenue de Choisy | B2: 103 Château | C2: Titulaire | D2: CDI
A3: 103 avenue de Choisy | B3: 173 Château | C3: Non titulaire | D3: CDD
A4: 88 rue de la Glacière | B4: 40 Château
A5: 47 avenue d'Ivry | B5: 40 Jenner
A6: 30 rue Corvisart | B6: 46 Jenner
A7: 32 place Jeanne d'Arc | B7: 71 Dunois
A8: 33 place Jeanne d'Arc | B8: Balanchine
A9: 8 rue Küss | B9: Baudricourt
A10: Estienne | B10: Bobillot
A11: 7 rue de la Providence | B11: Brillat Savarin
A12: 16 rue Wurtz | B12: Croulebarbe
A13: 90 Bd Vincent Auriol | B13: Domrémy
A14: 11 rue Croulebarbe | B14: Espérance
A15: 31 rue Bobillot | B15: Gourdault
A16: 31/37 Château des rentiers | B16: Longues Raies
A17: 53 rue Baudricourt | B17: Moulin de la pointe
A18: Secrétariat | B18: Nordmann
A19: Franc-Nohain | B19: Paul Gervais
A20: 30 Bd Arago | B20: Pointe d'Ivry
A21: Damesme | B21: Primo lévi
A22: 62 Dunois | B22: Stephen Pichon
A23: 51 Porte d'Ivry | B23: Tagore
A24: Auguste Blanqui | B24: Tolbiac
A25: 5 rue Yéo Thomas | B25: Vincent Auriol
A26: 13 rue Fagon | B26: Vulpian
B27: Charles Moureu
B28: 44 Enfants d'Isieu

Sheet bdd
A1: nom | B1: prenom | C1: nom jeune fille | D1: sexe | E1: photo | F1: date naissance | G1: lieu naissance | H1: date deces | I1: nationalite | J1: etat civil | K1: civilite | L1: ss | M1: num | N1: bis | O1: voie | P1: complement | Q1: cp | R1: ville | S1: datentree | T1: datsortie | U1: statut | V1: contrat | W1: echelon | X1: fincdd | Y1: scolaire | Z1: mercredi | AA1: position | AB1: enfants | AC1: ib | AD1: im | AE1: cuisine | AF1: portage | AG1: conge | AH1: de | AI1: a | AM1: ancienneté | AN1: âge
A2: DUPONT | B2: Jaqueline | D2: Féminin | F2: 03/03/1962 | G2: POINTE À PITRE | I2: Française | J2: Célibataire | K2: Mlle | L2: 2000000000000 | 65 | M2: 12 | O2: avenue duchmol | Q2: 93000 | R2: BOBIGNY LES OIES | S2: 08/11/2010 | U2: Non titulaire | V2: CDD | W2: 1 | X2: 2012-11-07 | Y2: 5 | Z2: 3 | AA2: Activité | AB2: 0 | AC2: 297 | AD2: 295 | AE2: 62 Dunois | AJ2: =CONCATENATE(A2," ",B2) -> DUPONT Jaqueline | AK2: =TRIM(CONCATENATE(M2," ",N2," ",O2)) -> 12 avenue duchmol | AL2: =TRIM(CONCATENATE(Q2,R2)) -> 93000 BOBIGNY LES OIES | AM2: =IF(S2="","",DATEDIF(S2,MIN(T2,TODAY()),"y")& IF(DATEDIF(S2,MIN(T2,TODAY()),"y")>1," ans, "," an, ") & DATEDIF(S2,MIN(T2,TODAY()),"ym") & " mois, "& DATEDIF(S2,MIN(T2,TODAY()),"md") &IF(DATEDIF(S2,MIN(T2,TODAY()),"md")>1," jours"," jour")) -> 2 ans, 3 mois, 11 jours | AN2: =INT((TODAY()-F2)/365) -> 51 | AO2: =ROWS(OFFSET(bdd!$A$2,,,COUNTA(bdd!$A:$A)-1)) -> 3 | AP2: =AO2-COUNTIF(T:T,"<" & TODAY()) -> 3
A3: DURANT | B3: Monique | D3: Féminin | F3: 1965-03-10 | G3: TUNISIE | I3: Hors UE | J3: Marié(e) | K3: Mme | L3: 2111111111111 | 55 | M3: 50 | O3: rue du cheval | Q3: 75013 | R3: PARIS | S3: 1992-04-01 | U3: Non titulaire | V3: CDI | W3: 6 | Y3: 6 | Z3: 3,5 | AA3: Activité | AB3: 2 | AC3: 318 | AD3: 305 | AE3: 31/37 Château des rentiers | AF3: Primo lévi | AJ3: DURANT Monique | AK3: 50 rue du cheval | AL3: 75013 PARIS | AM3: 20 ans, 10 mois, 18 jours | AN3: 47
A4: MARTIN | B4: Sylvie | D4: Féminin | F4: 21/03/1960 | G4: ALGERIE | I4: Française | J4: Marié(e) | K4: Mme | L4: 2222222222222 | 17 | M4: 12 | O4: rue tartenpion | Q4: 65000 | R4: TRIFOUILLIS LES OIES | S4: 09/01/2006 | U4: Non titulaire | V4: CDI | W4: 2 | Y4: 5 | Z4: 3 | AA4: Activité | AB4: 1 | AC4: 298 | AD4: 310 | AE4: 103 avenue de Choisy | AJ4: MARTIN Sylvie | AK4: 12 rue tartenpion | AL4: 65000 TRIFOUILLIS LES OIES | AM4: 7 ans, 1 mois, 10 jours | AN4: 52
AJ367: =CONCATENATE(A367," ",B367) ->  | AK367: =TRIM(CONCATENATE(M367," ",N367," ",O367)) ->  | AL367: =TRIM(CONCATENATE(Q367,R367)) ->  | AM367: =IF(S367="","",DATEDIF(S367,MIN(T367,TODAY()),"y")& IF(DATEDIF(S367,MIN(T367,TODAY()),"y")>1," ans, "," an, ") & DATEDIF(S367,MIN(T367,TODAY()),"ym") & " mois, "& DATEDIF(S367,MIN(T367,TODAY()),"md") &IF(DATEDIF(S367,MIN(T367,TODAY()),"md")>1," jours"," jour")) ->  | AN367: =INT((TODAY()-F367)/365) -> 113
AN368: 113
AN369: 113
AN370: 113
AN371: 113
AN372: 113
AN373: 113
AN374: 113
AN375: 113
AN376: 113
AN377: 113
AN378: 113
AN379: 113
AN380: 113
AN381: 113
AN382: 113
AN383: 113
AN384: 113
AN385: 113
AJ386: =CONCATENATE(A386," ",B386) ->  | AK386: =TRIM(CONCATENATE(M386," ",N386," ",O386)) ->  | AM386: =IF(S386="","",DATEDIF(S386,MIN(T386,TODAY()),"y")& IF(DATEDIF(S386,MIN(T386,TODAY()),"y")>1," ans, "," an, ") & DATEDIF(S386,MIN(T386,TODAY()),"ym") & " mois, "& DATEDIF(S386,MIN(T386,TODAY()),"md") &IF(DATEDIF(S386,MIN(T386,TODAY()),"md")>1," jours"," jour")) ->  | AN386: =INT((TODAY()-F386)/365) -> 113
AN387: 113
AN388: 113
AN389: 113
AN390: 113
AN391: 113
AN392: 113
AN393: 113
AN394: 113
AN395: 113
AN396: 113
AN397: 113
AN398: 113
AN399: 113
AN400: 113
AN401: 113
AN402: 113
AN403: 113
AN404: 113
AN405: 113
AN406: 113
AN407: 113
AN408: 113
AN409: 113
AN410: 113
AN411: 113
AN412: 113
AN413: 113
AN414: 113
AL415: =TRIM(CONCATENATE(Q415,R415)) ->  | AN415: 113
AN416: 113
AN417: 113
AN418: 113
AN419: 113
AN420: 113
AN421: 113
AN422: 113
AN423: 113
AN424: 113
AN425: 113
AN426: 113
AN427: 113
AN428: 113
AN429: 113
AN430: 113
AN431: 113
AN432: 113
AN433: 113
AN434: 113
AN435: 113
AN436: 113
AJ450: =CONCATENATE(A450," ",B450) ->  | AK450: =TRIM(CONCATENATE(M450," ",N450," ",O450)) -> 
AL479: =TRIM(CONCATENATE(Q479,R479)) -> 
AK514: =TRIM(CONCATENATE(M514," ",N514," ",O514)) -> 
AL543: =TRIM(CONCATENATE(Q543,R543)) -> 
AK578: =TRIM(CONCATENATE(M578," ",N578," ",O578)) -> 
AL607: =TRIM(CONCATENATE(Q607,R607)) -> 
AK642: =TRIM(CONCATENATE(M642," ",N642," ",O642)) -> 
AL671: =TRIM(CONCATENATE(Q671,R671)) -> 
AK706: =TRIM(CONCATENATE(M706," ",N706," ",O706)) -> 
AL735: =TRIM(CONCATENATE(Q735,R735)) -> 
AK770: =TRIM(CONCATENATE(M770," ",N770," ",O770)) -> 
AL799: =TRIM(CONCATENATE(Q799,R799)) -> 
AK834: =TRIM(CONCATENATE(M834," ",N834," ",O834)) -> 
AL863: =TRIM(CONCATENATE(Q863,R863)) -> 
AK898: =TRIM(CONCATENATE(M898," ",N898," ",O898)) -> 
AL927: =TRIM(CONCATENATE(Q927,R927)) -> 
AK962: =TRIM(CONCATENATE(M962," ",N962," ",O962)) -> 
AL991: =TRIM(CONCATENATE(Q991,R991)) -> 
AK1000: =CONCATENATE(M1000," ",N1000," ",O1000) -> 
AK1032: =CONCATENATE(M1032," ",N1032," ",O1032) -> 
AK1064: =CONCATENATE(M1064," ",N1064," ",O1064) -> 
AK1096: =CONCATENATE(M1096," ",N1096," ",O1096) -> 

Sheet filtre
A2: =(bdd!L2 = "2711099333067 | 50") * 1 -> 0
A4: nom | B4: prenom | C4: nom jeune fille | D4: sexe | E4: photo | F4: date naissance | G4: lieu naissance | H4: date deces | I4: nationalite | J4: etat civil | K4: civilite | L4: ss | M4: num | N4: bis | O4: voie | P4: complement | Q4: cp | R4: ville | S4: datentree | T4: datsortie | U4: statut | V4: contrat | W4: echelon | X4: fincdd | Y4: scolaire | Z4: mercredi | AA4: position | AB4: enfants | AC4: ib | AD4: im | AE4: cuisine | AF4: portage | AG4: conge | AH4: de | AI4: a
A5: HASSANI | B5: Amina | D5: Féminin | E5: \\SERVEUR\Utilisateurs\Frédéric\Perso\Macro2\logo.jpg | F5: 1971-10-06 | L5: 2711099333067 | 50 | M5: 9 | O5: allée des bourgeons | Q5: 94000 | R5: CRETEIL | S5: 2001-09-01 | U5: Non titulaire | V5: CDI | Y5: 5 | Z5: 3

Sheet grille
A1: FONCTION PUBLIQUE TERRITORIALE | I1: CENTRE DE GESTION DU JURA
D4: LES GRILLES INDICIAIRES | K4: Mise à jour : 1/01/2011
C7: Valeur du point annuel : | E7: 55.5635 | G7: Heures supplémentaires : les 14 premières : (TAB*1,25)/1820
C8: Valeur du point mensuel : | E8: 4.6302 | G8: Heures supplémentaires : les 11 autres : (TAB*1,27)/1820
B10: au 1/01/2011
D14: AGENT ADMINISTRATIF | F14: AGENT SOCIAL
D15: AGENT D'ANIMATION | F15: AIDE MEDICO-TECHNIQUE
D16: AGENT D'ENTRETIEN | F16: CONDUCTEUR DE VEHICULES
D17: AGENT DU PATRIMOINE de 2nde classe
F19: en Euros | H19: HEURES SUPPLÉMENTAIRES en Euros
A20: Échelon | B20: I.B. | C20: I.M. | D20: Mini | E20: Maxi | F20: Brut annuel | G20: Brut mensuel | H20: Jusqu'à 14h | I20: Après 14h | J20: Dimanches | K20: Nuits
A21: 1 | B21: 245 | C21: 263 | D21: 1 an | E21: 1 an | F21: =point*$C21 -> 14613.2005 | G21: =F21/12 -> 1217.766708 | H21: =F21*1.07/1820 -> 8.591277217 | I21: =F21*1.27/1820 -> 10.19712343 | J21: =$H21*1.66 -> 14.26152018 | K21: =$H21*2 -> 17.18255443
A22: 2 | B22: 253 | C22: 264 | D22: 1a 6m | E22: 2 ans | F22: =point*$C22 -> 14668.764 | G22: =F22/12 -> 1222.397 | H22: =F22*1.07/1820 -> 8.62394367 | I22: =F22*1.27/1820 -> 10.23589576 | J22: =$H22*1.66 -> 14.31574649 | K22: =$H22*2 -> 17.24788734
A23: 3 | B23: 260 | C23: 267 | D23: 1a 6m | E23: 2 ans | F23: 14835.4545 | G23: 1236.287875 | H23: 8.72194303 | I23: 10.35221276 | J23: 14.47842543 | K23: 17.44388606
A24: 4 | B24: 267 | C24: 271 | D24: 1a 6m | E24: 2 ans | F24: 15057.7085 | G24: 1254.809042 | H24: 8.852608843 | I24: 10.50730209 | J24: 14.69533068 | K24: 17.70521769
A25: 5 | B25: 277 | C25: 278 | D25: 2 ans | E25: 3 ans | F25: 15446.653 | G25: 1287.221083 | H25: 9.081274016 | I25: 10.77870841 | J25: 15.07491487 | K25: 18.16254803
A26: 6 | B26: 289 | C26: 283 | D26: 2 ans | E26: 3 ans | F26: 15724.4705 | G26: 1310.372542 | H26: 9.244606283 | I26: 10.97257007 | J26: 15.34604643 | K26: 18.48921257
A27: 7 | B27: 294 | C27: 287 | D27: 2 ans | E27: 3 ans | F27: 15946.7245 | G27: 1328.893708 | H27: 9.375272096 | I27: 11.1276594 | J27: 15.56295168 | K27: 18.75054419
A28: 8 | B28: 303 | C28: 294 | D28: 3 ans | E28: 4 ans | F28: 16335.669 | G28: 1361.30575 | H28: 9.603937269 | I28: 11.39906573 | J28: 15.94253587 | K28: 19.20787454
A29: 9 | B29: 314 | C29: 302 | D29: 3 ans | E29: 4 ans | F29: 16780.177 | G29: 1398.348083 | H29: 9.865268896 | I29: 11.70924439 | J29: 16.37634637 | K29: 19.73053779
A30: 10 | B30: 321 | C30: 306 | D30: 3 ans | E30: 4 ans | F30: 17002.431 | G30: 1416.86925 | H30: 9.995934709 | I30: 11.86433372 | J30: 16.59325162 | K30: 19.99186942
A31: 11 | B31: 343 | C31: 323 | F31: 17947.0105 | G31: 1495.584208 | H31: 10.55126441 | I31: 12.52346337 | J31: 17.51509893 | K31: 21.10252883
D34: CATEGORIE C
D41: AGENT ADMINISTRATIF QUALIFIE | F41: AIDE MEDICO-TECHNIQUE QUALIFIE
D42: AGENT D'ANIMATION QUALIFIE | F42: AIDE OPERATEUR DES ACTIVITES PHYSIQUES ET SPORTIVES
D43: AGENT D'ENTRETIEN QUALIFIE | F43: AUXILIAIRE DE PUERICULTURE
D44: AGENT DE SALUBRITE | F44: AUXILIAIRE DE SOINS
D45: AGENT DU PATRIMOINE de 1ère classe | F45: CONDUCTEUR SPECIALISE de 1er niveau
D46: AGENT SOCIAL QUALIFIE de 2nde classe | F46: GARDE CHAMPÊTRE
D47: AGENT SPECIALISE DES ECOLES MATERNELLES de 2nde classe | F47: GARDIEN D'IMMEUBLE
D48: AGENT TECHNIQUE | F48: AGENT DE POLICE MUNICIPALE
F51: Traitement | H51: HEURES SUPPLÉMENTAIRES
A52: Échelon | B52: I.B. | C52: I.M. | D52: Mini | E52: Maxi | F52: Brut annuel | G52: Brut mensuel | H52: Jusqu'à14h | I52: Après 14h | J52: Dimanches | K52: Nuits
A53: 1 | B53: 297 | C53: 309 | D53: 1 an | E53: 1 an | F53: =point*$C53 -> 17169.1215 | G53: =F53/12 -> 1430.760125 | H53: =F53*1.25/1820 -> 11.79197905 | I53: =F53*1.27/1820 -> 11.98065072 | J53: =$H53*1.66 -> 19.57468523 | K53: =$H53*2 -> 23.5839581
A54: 2 | B54: 298 | C54: 310 | D54: 1a 6m | E54: 2 ans | F54: =point*$C54 -> 17224.685 | G54: =F54/12 -> 1435.390417 | H54: =F54*1.25/1820 -> 11.8301408 | I54: =F54*1.27/1820 -> 12.01942305 | J54: =$H54*1.66 -> 19.63803372 | K54: =$H54*2 -> 23.66028159
A55: 3 | B55: 299 | C55: 311 | D55: 1a 6m | E55: 2 ans | F55: 17280.2485 | G55: 1440.020708 | H55: 11.86830254 | I55: 12.05819538 | J55: 19.70138222 | K55: 23.73660508
A56: 4 | B56: 303 | C56: 312 | D56: 2 ans | E56: 3 ans | F56: 17335.812 | G56: 1444.651 | H56: 11.90646429 | I56: 12.09696771 | J56: 19.76473071 | K56: 23.81292857
A57: 5 | B57: 310 | C57: 313 | D57: 2 ans | E57: 3 ans | F57: 17391.3755 | G57: 1449.281292 | H57: 11.94462603 | I57: 12.13574005 | J57: 19.82807921 | K57: 23.88925206
A58: 6 | B58: 318 | C58: 314 | D58: 2 ans | E58: 3 ans | F58: 17446.939 | G58: 1453.911583 | H58: 11.98278777 | I58: 12.17451238 | J58: 19.89142771 | K58: 23.96557555
A59: 7 | B59: 328 | C59: 315 | D59: 3 ans | E59: 4 ans | F59: 17502.5025 | G59: 1458.541875 | H59: 12.02094952 | I59: 12.21328471 | J59: 19.9547762 | K59: 24.04189904
A60: 8 | B60: 337 | C60: 319 | D60: 3 ans | E60: 4 ans | F60: 17724.7565 | G60: 1477.063042 | H60: 12.1735965 | I60: 12.36837404 | J60: 20.20817019 | K60: 24.34719299
A61: 9 | B61: 348 | C61: 326 | D61: 3 ans | E61: 4 ans | F61: 18113.701 | G61: 1509.475083 | H61: 12.44072871 | I61: 12.63978037 | J61: 20.65160966 | K61: 24.88145742
A62: 10 | B62: 364 | C62: 338 | D62: 3 ans | E62: 4 ans | F62: 18780.463 | G62: 1565.038583 | H62: 12.89866964 | I62: 13.10504836 | J62: 21.41179161 | K62: 25.79733929
A63: 11 | B63: 388 | C63: 355 | F63: 19725.0425 | G63: 1643.753542 | H63: 13.5474193 | I63: =F63*1.27/1820 -> 13.76417801 | J63: 22.48871604 | K63: 27.0948386
A64: 11 | B64: 388 | C64: 355 | F64: 19725.0425 | G64: 1643.753542 | H64: 13.5474193 | I64: =F64*1.27/1820 -> 13.76417801 | J64: 22.48871604 | K64: 27.0948386
E71: ADJOINT ADMINISTRATIF | F71: AUXILIAIRE DE PUÉRICULTURE PRINCIPAL
E72: ADJOINT D'ANIMATION | F72: AUXILIAIRE DE SOINS PRINCIPAL
E73: AGENT DE SALUBRITÉ QUALIFIE | F73: CONDUCTEUR SPÉCIALISÉ de 2nd niveau
E74: AGENT QUALIFIE DU PATRIMOINE de 2nde classe | F74: GARDE CHAMPÊTRE PRINCIPAL
E75: AGENT SOCIAL QUALIFIE de 1ère classe | F75: GARDIEN D'IMMEUBLE QUALIFIE
E76: AGENT SPÉCIALISÉ DES ÉCOLES MATERNELLES de 1ère classe | F76: GARDIEN PRINCIPAL DE POLICE MUNICIPALE
E77: AGENT TECHNIQUE QUALIFIE | F77: OPÉRATEUR DES ACTIVITÉS PHYSIQUES ET SPORTIVES
F80: Traitement | H80: HEURES SUPPLÉMENTAIRES
A81: Échelon | B81: I.B. | C81: I.M. | D81: Mini | E81: Maxi | F81: Brut annuel | G81: Brut mensuel | H81: Jusqu'à 14h | I81: Après 14h | J81: Dimanches | K81: Nuits
A82: 1 | B82: 298 | C82: 296 | D82: 1 an | E82: 1 an | F82: =point*$C82 -> 16446.796 | G82: =F82/12 -> 1370.566333 | H82: =F82*1.25/1820 -> 11.29587637 | I82: =F82*1.27/1820 -> 11.4766104 | J82: =$H82*1.66 -> 18.75115478 | K82: =$H82*2 -> 22.59175275
A83: 2 | B83: 299 | C83: 297 | D83: 1a 6m | E83: 2 ans | F83: =point*$C83 -> 16502.3595 | G83: =F83/12 -> 1375.196625 | H83: =F83*1.25/1820 -> 11.33403812 | I83: =F83*1.27/1820 -> 11.51538273 | J83: =$H83*1.66 -> 18.81450328 | K83: =$H83*2 -> 22.66807624
A84: 3 | B84: 303 | C84: 298 | D84: 1a 6m | E84: 2 ans | F84: 16557.923 | G84: 1379.826917 | H84: 11.37219986 | I84: 11.55415506 | J84: 18.87785177 | K84: 22.74439973
A85: 4 | B85: 310 | C85: 300 | D85: 2 ans | E85: 3 ans | F85: 16669.05 | G85: 1389.0875 | H85: 11.44852335 | I85: 11.63169973 | J85: 19.00454876 | K85: 22.8970467
A86: 5 | B86: 323 | C86: 308 | D86: 2 ans | E86: 3 ans | F86: 17113.558 | G86: 1426.129833 | H86: 11.75381731 | I86: 11.94187838 | J86: 19.51133673 | K86: 23.50763462
A87: 6 | B87: 333 | C87: 316 | D87: 2 ans | E87: 3 ans | F87: 17558.066 | G87: 1463.172167 | H87: 12.05911126 | I87: 12.25205704 | J87: 20.0181247 | K87: 24.11822253
A88: 7 | B88: 347 | C88: 325 | D88: 3 ans | E88: 4 ans | F88: 18058.1375 | G88: 1504.844792 | H88: 12.40256696 | I88: 12.60100804 | J88: 20.58826116 | K88: 24.80513393
A89: 8 | B89: 360 | C89: 335 | D89: 3 ans | E89: 4 ans | F89: 18613.7725 | G89: 1551.147708 | H89: 12.78418441 | I89: 12.98873136 | J89: 21.22174612 | K89: 25.56836882
A90: 9 | B90: 374 | C90: 345 | D90: 3 ans | E90: 4 ans | F90: 19169.4075 | G90: 1597.450625 | H90: 13.16580185 | I90: 13.37645468 | J90: 21.85523108 | K90: 26.33160371
A91: 10 | B91: 389 | C91: 356 | D91: 3 ans | E91: 4 ans | F91: 19780.606 | G91: 1648.383833 | H91: 13.58558104 | I91: 13.80295034 | J91: 22.55206453 | K91: 27.17116209
A92: 11 | B92: 382 | C92: 351 | F92: 19502.7885 | G92: 1625.232375 | H92: 13.39477232 | I92: =F92*1.27/1820 -> 13.60908868 | J92: 22.23532205 | K92: 26.78954464
A93: 11 | B93: 413 | C93: 369 | F93: 20502.9315 | G93: 1708.577625 | H93: 14.08168372 | I93: =F93*1.27/1820 -> 14.30699066 | J93: 23.37559498 | K93: 28.16336745
E98: ADJOINT ADMINISTRATIF PRINCIPAL de 2nde classe | F98: AGENT TECHNIQUE PRINCIPAL
E99: ADJOINT D'ANIMATION QUALIFIE | F99: BRIGADIER / BRIGADIER CHEF DE POLICE MUNICIPALE
F104: Traitement | H104: HEURES SUPPLÉMENTAIRES
A105: Échelon | B105: I.B. | C105: I.M. | D105: Mini | E105: Maxi | F105: Brut annuel | G105: Brut mensuel | H105: Jusqu'à 14h | I105: Après 14h | J105: Dimanches | K105: Nuits
A106: 1 | B106: 299 | C106: 297 | D106: 1 an | E106: 1 an | F106: =point*$C106 -> 16502.3595 | G106: =F106/12 -> 1375.196625 | H106: =F106*1.25/1820 -> 11.33403812 | I106: =F106*1.27/1820 -> 11.51538273 | J106: =$H106*1.66 -> 18.81450328 | K106: =$H106*2 -> 22.66807624
A107: 2 | B107: 302 | C107: 298 | D107: 1a 6m | E107: 2 ans | F107: =point*$C107 -> 16557.923 | G107: =F107/12 -> 1379.826917 | H107: =F107*1.25/1820 -> 11.37219986 | I107: =F107*1.27/1820 -> 11.55415506 | J107: =$H107*1.66 -> 18.87785177 | K107: =$H107*2 -> 22.74439973
A108: 3 | B108: 307 | C108: 299 | D108: 1a 6m | E108: 2 ans | F108: 16613.4865 | G108: 1384.457208 | H108: 11.41036161 | I108: 11.59292739 | J108: 18.94120027 | K108: 22.82072321
A109: 4 | B109: 322 | C109: 308 | D109: 2 ans | E109: 3 ans | F109: 17113.558 | G109: 1426.129833 | H109: 11.75381731 | I109: 11.94187838 | J109: 19.51133673 | K109: 23.50763462
A110: 5 | B110: 336 | C110: 318 | D110: 2 ans | E110: 3 ans | F110: 17669.193 | G110: 1472.43275 | H110: 12.13543475 | I110: 12.32960171 | J110: 20.14482169 | K110: 24.27086951
A111: 6 | B111: 351 | C111: 328 | D111: 2 ans | E111: 3 ans | F111: 18224.828 | G111: 1518.735667 | H111: 12.5170522 | I111: 12.71732503 | J111: 20.77830665 | K111: 25.0341044
A112: 7 | B112: 364 | C112: 338 | D112: 3 ans | E112: 4 ans | F112: 18780.463 | G112: 1565.038583 | H112: 12.89866964 | I112: 13.10504836 | J112: 21.41179161 | K112: 25.79733929
A113: 8 | B113: 380 | C113: 350 | D113: 3 ans | E113: 4 ans | F113: 19447.225 | G113: 1620.602083 | H113: 13.35661058 | I113: 13.57031635 | J113: 22.17197356 | K113: 26.71322115
A114: 9 | B114: 398 | C114: 362 | D114: 3 ans | E114: 4 ans | F114: 20113.987 | G114: 1676.165583 | H114: 13.81455151 | I114: 14.03558434 | J114: 22.93215551 | K114: 27.62910302
A115: 10 | B115: 427 | C115: 379 | D115: 3 ans | E115: 4 ans | F115: 21058.5665 | G115: 1754.880542 | H115: 14.46330117 | I115: 14.69471399 | J115: 24.00907994 | K115: 28.92660234
A116: 11 | B116: 427 | C116: 378 | F116: 21003.003 | G116: 1750.25025 | H116: 14.42513942 | I116: 14.65594165 | J116: 23.94573144 | K116: 28.85027885
A117: 11 | B117: 446 | C117: 392 | F117: 21780.892 | G117: 1815.074333 | H117: 14.95940385 | I117: 15.19875431 | J117: 24.83261038 | K117: 29.91880769
F128: Traitement | H128: HEURES SUPPLÉMENTAIRES
A129: Échelon | B129: I.B. | C129: I.M. | D129: Mini | E129: Maxi | F129: Brut annuel | G129: Brut mensuel | H129: Jusqu'à 14h | I129: Après 14h | J129: Dimanches | K129: Nuits
A130: 1 | B130: 347 | C130: 325 | D130: 1a 6m | E130: 2ans | F130: =point*$C130 -> 18058.1375 | G130: =F130/12 -> 1504.844792 | H130: =F130*1.25/1820 -> 12.40256696 | I130: =F130*1.27/1820 -> 12.60100804 | J130: =$H130*1.66 -> 20.58826116 | K130: =$H130*2 -> 24.80513393
A131: 2 | B131: 362 | C131: 336 | D131: 1a 6m | E131: 2 ans | F131: 18669.336 | G131: 1555.778 | H131: =F131*1.25/1820 -> 12.82234615 | I131: 13.02750369 | J131: 21.28509462 | K131: 25.64469231
A132: 3 | B132: 377 | C132: 347 | D132: 2 ans | E132: 3 ans | F132: 19280.5345 | G132: 1606.711208 | H132: 13.24212534 | I132: 13.45399935 | J132: 21.98192807 | K132: 26.48425069
A133: 4 | B133: 396 | C133: 360 | D133: 2 ans | E133: 3 ans | F133: 20002.86 | G133: 1666.905 | H133: 13.73822802 | I133: 13.95803967 | J133: 22.80545852 | K133: 27.47645604
A134: 5 | B134: 424 | C134: 377 | D134: 2 ans | E134: 3 ans | F134: 20947.4395 | G134: 1745.619958 | H134: 14.38697768 | I134: 14.61716932 | J134: 23.88238295 | K134: 28.77395536
A135: 6 | B135: 449 | C135: 394 | D135: 3 ans | E135: 4 ans | F135: 21892.019 | G135: 1824.334917 | H135: 15.03572734 | I135: 15.27629897 | J135: 24.95930738 | K135: 30.07145467
A136: 7 | B136: 479 | C136: 416 | D136: 3 ans | E136: 4 ans | F136: 23114.416 | G136: 1926.201333 | H136: 15.87528571 | I136: 16.12929029 | J136: 26.35297429 | K136: 31.75057143
A137: Spécial * | B137: 499 | C137: 430 | F137: 23892.305 | G137: 1991.025417 | H137: 16.40955014 | I137: 16.67210294 | J137: 27.23985323 | K137: 32.81910027
C138: * Echelon spécial uniquement pour les Adjoints Techniques Principaux de 1ère classe

Sheet villes (hidden)
A1: Ville | B1: CP
A2: AAST | B2: 64460 | C2: PYRENEES ATLANTIQUES
A3: ABAINVILLE | B3: 55130 | C3: MEUSE
A4: ABANCOURT | B4: 59265 | C4: NORD
A5: ABANCOURT | B5: 60220 | C5: OISE
A6: ABAUCOURT | B6: 54610 | C6: MEURTHE ET MOSELLE
A7: ABAUCOURT HAUTECOURT | B7: 55400 | C7: MEUSE
A8: ABBANS DESSOUS | B8: 25320 | C8: DOUBS
A9: ABBANS DESSUS | B9: 25440 | C9: DOUBS
A10: ABBARETZ | B10: 44170 | C10: LOIRE ATLANTIQUE
A11: ABBAZIA | B11: 20243 | C11: CORSE
A12: ABBECOURT | B12: 02300 | C12: AISNE
A13: ABBECOURT | B13: 60430 | C13: OISE
A14: ABBENANS | B14: 25340 | C14: DOUBS
A15: ABBEVILLE | B15: 80100 | C15: SOMME
A16: ABBEVILLE LA RIVIERE | B16: 91150 | C16: ESSONNE
A17: ABBEVILLE LES CONFLANS | B17: 54800 | C17: MEURTHE ET MOSELLE
A18: ABBEVILLE ST LUCIEN | B18: 60480 | C18: OISE
A19: ABBEVILLERS | B19: 25310 | C19: DOUBS
A20: ABEILHAN | B20: 34290 | C20: HERAULT
A21: ABELCOURT | B21: 70300 | C21: HAUTE SAONE
A22: ABERE | B22: 64160 | C22: PYRENEES ATLANTIQUES
A23: ABERGEMENT LA RONCE | B23: 39500 | C23: JURA
A24: ABERGEMENT LE GRAND | B24: 39600 | C24: JURA
A25: ABERGEMENT LE PETIT | B25: 39800 | C25: JURA
A26: ABERGEMENT LES THESY | B26: 39110 | C26: JURA
A27: ABERGEMENT ST JEAN | B27: 39120 | C27: JURA
A28: ABERWRACH | B28: 29870 | C28: FINISTERE
A29: ABIDOS | B29: 64150 | C29: PYRENEES ATLANTIQUES
A30: ABILLY | B30: 37160 | C30: INDRE ET LOIRE
A31: ABITAIN | B31: 64390 | C31: PYRENEES ATLANTIQUES
A32: ABJAT SUR BANDIAT | B32: 24300 | C32: DORDOGNE
A33: ABLAIN ST NAZAIRE | B33: 62153 | C33: PAS DE CALAIS
A34: ABLAINCOURT PRESSOIRE | B34: 80320 | C34: SOMME
A35: ABLAINZEVELLE | B35: 62116 | C35: PAS DE CALAIS
A36: ABLANCOURT | B36: 51240 | C36: MARNE
A37: ABLEIGES | B37: 95450 | C37: VAL D'OISE
A38: ABLIS | B38: 78660 | C38: YVELINES
A39: ABLON | B39: 14600 | C39: CALVADOS
A40: ABLON SUR SEINE | B40: 94480 | C40: VAL DE MARNE
A41: ABOEN | B41: 42380 | C41: LOIRE
A42: ABONCOURT | B42: 54115 | C42: MEURTHE ET MOSELLE
A43: ABONCOURT | B43: 57920 | C43: MOSELLE
A44: ABONCOURT GESINCOURT | B44: 70500 | C44: HAUTE SAONE
A45: ABONCOURT SUR SEILLE | B45: 57590 | C45: MOSELLE
A46: ABONDANCE | B46: 74360 | C46: HAUTE SAVOIE
A47: ABONDANT | B47: 28570 | C47: EURE ET LOIR
A48: ABOS | B48: 64360 | C48: PYRENEES ATLANTIQUES
A49: ABRESCHVILLER | B49: 57560 | C49: MOSELLE
A50: ABREST | B50: 03200 | C50: ALLIER
A51: ABRIES | B51: 05460 | C51: HAUTES ALPES
A52: ABSCON | B52: 59215 | C52: NORD
A53: ABZAC | B53: 16500 | C53: CHARENTE
A54: ABZAC | B54: 33230 | C54: GIRONDE
A55: ACCOLANS | B55: 25250 | C55: DOUBS
A56: ACCOLAY | B56: 89460 | C56: YONNE
A57: ACCONS | B57: 07160 | C57: ARDECHE
A58: ACCOUS | B58: 64490 | C58: PYRENEES ATLANTIQUES
A59: ACHAIN | B59: 57340 | C59: MOSELLE
A60: ACHEN | B60: 57410 | C60: MOSELLE
A61: ACHENHEIM | B61: 67204 | C61: BAS RHIN
A62: ACHERES | B62: 18250 | C62: CHER
A63: ACHERES | B63: 78260 | C63: YVELINES
A64: ACHERES LA FORET | B64: 77760 | C64: SEINE ET MARNE
A65: ACHERY | B65: 02800 | C65: AISNE
A66: ACHEUX EN AMIENOIS | B66: 80560 | C66: SOMME
A67: ACHEUX EN VIMEU | B67: 80210 | C67: SOMME
A68: ACHEVILLE | B68: 62320 | C68: PAS DE CALAIS
A69: ACHEY | B69: 70180 | C69: HAUTE SAONE
A70: ACHICOURT | B70: 62217 | C70: PAS DE CALAIS
A71: ACHIET LE GRAND | B71: 62121 | C71: PAS DE CALAIS
A72: ACHIET LE PETIT | B72: 62121 | C72: PAS DE CALAIS
A73: ACHUN | B73: 58110 | C73: NIEVRE
A74: ACHY | B74: 60690 | C74: OISE
A75: ACIGNE | B75: 35690 | C75: ILLE ET VILAINE
A76: ACLOU | B76: 27800 | C76: EURE
A77: ACON | B77: 27570 | C77: EURE
A78: ACOUA | B78: 97600 | C78: MAYOTTE
A79: ACQ | B79: 62144 | C79: PAS DE CALAIS
A80: ACQUEVILLE | B80: 14220 | C80: CALVADOS
A81: ACQUEVILLE | B81: 50440 | C81: MANCHE
A82: ACQUIGNY | B82: 27400 | C82: EURE
A83: ACQUIN WESTBECOURT | B83: 62380 | C83: PAS DE CALAIS
A84: ACY | B84: 02200 | C84: AISNE
A85: ACY EN MULTIEN | B85: 60620 | C85: OISE
A86: ACY ROMANCE | B86: 08300 | C86: ARDENNES
A87: ADAINCOURT | B87: 57580 | C87: MOSELLE
A88: ADAINVILLE | B88: 78113 | C88: YVELINES
A89: ADAM LES PASSAVANT | B89: 25360 | C89: DOUBS
A90: ADAM LES VERCEL | B90: 25530 | C90: DOUBS
A91: ADAMSWILLER | B91: 67320 | C91: BAS RHIN
A92: ADAST | B92: 65260 | C92: HAUTES PYRENEES
A93: ADE | B93: 65100 | C93: HAUTES PYRENEES
A94: ADELANGE | B94: 57380 | C94: MOSELLE
A95: ADELANS ET LE VAL DE BITH | B95: 70200 | C95: HAUTE SAONE
A96: ADERVIELLE POUCHERGUES | B96: 65240 | C96: HAUTES PYRENEES
A97: ADILLY | B97: 79200 | C97: DEUX SEVRES
A98: ADINFER | B98: 62116 | C98: PAS DE CALAIS
A99: ADISSAN | B99: 34230 | C99: HERAULT
A100: ADOMPT | B100: 88270 | C100: VOSGES
A101: ADON | B101: 45230 | C101: LOIRET
A102: ADRIERS | B102: 86430 | C102: VIENNE
A103: AEROPORT D ORLY | B103: 94390 | C103: VAL DE MARNE
A104: AFA | B104: 20167 | C104: CORSE
A105: AFAAHITI | B105: 98719 | C105: POLYNESIE FRANCAISE
A106: AFFIEUX | B106: 19260 | C106: CORREZE
A107: AFFLEVILLE | B107: 54800 | C107: MEURTHE ET MOSELLE
A108: AFFOUX | B108: 69170 | C108: RHONE
A109: AFFRACOURT | B109: 54740 | C109: MEURTHE ET MOSELLE
A110: AFFRINGUES | B110: 62380 | C110: PAS DE CALAIS
A111: AGASSAC | B111: 31230 | C111: HAUTE GARONNE
A112: AGAY | B112: 83530 | C112: VAR
A113: AGDE | B113: 34300 | C113: HERAULT
A114: AGEL | B114: 34210 | C114: HERAULT
A115: AGEN | B115: 47000 | C115: LOT ET GARONNE
A116: AGEN D AVEYRON | B116: 12630 | C116: AVEYRON
A117: AGENCOURT | B117: 21700 | C117: COTE D'OR
A118: AGENVILLE | B118: 80370 | C118: SOMME
A119: AGENVILLERS | B119: 80150 | C119: SOMME
A120: AGEVILLE | B120: 52340 | C120: HAUTE MARNE
A121: AGEY | B121: 21410 | C121: COTE D'OR
A122: AGHIONE | B122: 20270 | C122: CORSE
A123: AGINCOURT | B123: 54770 | C123: MEURTHE ET MOSELLE
A124: AGME | B124: 47350 | C124: LOT ET GARONNE
A125: AGNAC | B125: 47800 | C125: LOT ET GARONNE
A126: AGNAT | B126: 43100 | C126: HAUTE LOIRE
A127: AGNEAUX | B127: 50180 | C127: MANCHE
A128: AGNETZ | B128: 60600 | C128: OISE
A129: AGNEZ LES DUISANS | B129: 62161 | C129: PAS DE CALAIS
A130: AGNICOURT ET SECHELLES | B130: 02340 | C130: AISNE
A131: AGNIERES | B131: 62690 | C131: PAS DE CALAIS
A132: AGNIERES | B132: 80290 | C132: SOMME
A133: AGNIERES EN DEVOLUY | B133: 05250 | C133: HAUTES ALPES
A134: AGNIN | B134: 38150 | C134: ISERE
A135: AGNOS | B135: 64400 | C135: PYRENEES ATLANTIQUES
A136: AGNY | B136: 62217 | C136: PAS DE CALAIS
A137: AGON COUTAINVILLE | B137: 50230 | C137: MANCHE
A138: AGONAC | B138: 24460 | C138: DORDOGNE
A139: AGONES | B139: 34190 | C139: HERAULT
A140: AGONGES | B140: 03210 | C140: ALLIER
A141: AGONNAY | B141: 17350 | C141: CHARENTE MARITIME
A142: AGOS VIDALOS | B142: 65400 | C142: HAUTES PYRENEES
A143: AGRIS | B143: 16110 | C143: CHARENTE
A144: AGUDELLE | B144: 17500 | C144: CHARENTE MARITIME
A145: AGUESSAC | B145: 12520 | C145: AVEYRON
A146: AGUILCOURT | B146: 02190 | C146: AISNE
A147: AGUTS | B147: 81470 | C147: TARN
A148: AGY | B148: 14400 | C148: CALVADOS
A149: AHAXE ALCIETTE BASCASSAN | B149: 64220 | C149: PYRENEES ATLANTIQUES
A150: AHETZE | B150: 64210 | C150: PYRENEES ATLANTIQUES
A151: AHEVILLE | B151: 88500 | C151: VOSGES
A152: AHUILLE | B152: 53940 | C152: MAYENNE
A153: AHUN | B153: 23150 | C153: CREUSE
A154: AHUY | B154: 21121 | C154: COTE D'OR
A155: AIBES | B155: 59149 | C155: NORD
A156: AIBRE | B156: 25750 | C156: DOUBS
A157: AICIRITS CAMOU SUHAST | B157: 64120 | C157: PYRENEES ATLANTIQUES
A158: AIFFRES | B158: 79230 | C158: DEUX SEVRES
A159: AIGALIERS | B159: 30700 | C159: GARD
A160: AIGLEMONT | B160: 08090 | C160: ARDENNES
A161: AIGLEPIERRE | B161: 39110 | C161: JURA
A162: AIGLEVILLE | B162: 27120 | C162: EURE
A163: AIGLUN | B163: 04510 | C163: ALPES DE HAUTE PROVENCE
A164: AIGLUN | B164: 06910 | C164: ALPES MARITIMES
A165: AIGNAN | B165: 32290 | C165: GERS
A166: AIGNAY LE DUC | B166: 21510 | C166: COTE D'OR
A167: AIGNE | B167: 34210 | C167: HERAULT
A168: AIGNE | B168: 72650 | C168: SARTHE
A169: AIGNERVILLE | B169: 14710 | C169: CALVADOS
A170: AIGNES | B170: 31550 | C170: HAUTE GARONNE
A171: AIGNES ET PUYPEROUX | B171: 16190 | C171: CHARENTE
A172: AIGNEVILLE | B172: 80210 | C172: SOMME
A173: AIGNY | B173: 51150 | C173: MARNE
A174: AIGONNAY | B174: 79370 | C174: DEUX SEVRES
A175: AIGRE | B175: 16140 | C175: CHARENTE
A176: AIGREFEUILLE | B176: 31280 | C176: HAUTE GARONNE
A177: AIGREFEUILLE D AUNIS | B177: 17290 | C177: CHARENTE MARITIME
A178: AIGREFEUILLE SUR MAINE | B178: 44140 | C178: LOIRE ATLANTIQUE
A179: AIGREMONT | B179: 30350 | C179: GARD
A180: AIGREMONT | B180: 52400 | C180: HAUTE MARNE
A181: AIGREMONT | B181: 78240 | C181: YVELINES
A182: AIGREMONT | B182: 89800 | C182: YONNE
A183: AIGUEBELETTE LE LAC | B183: 73610 | C183: SAVOIE
A184: AIGUEBELLE | B184: 73220 | C184: SAVOIE
A185: AIGUEBLANCHE | B185: 73260 | C185: SAVOIE
A186: AIGUEFONDE | B186: 81200 | C186: TARN
A187: AIGUEPERSE | B187: 63260 | C187: PUY DE DOME
A188: AIGUEPERSE | B188: 69790 | C188: RHONE
A189: AIGUES JUNTES | B189: 09240 | C189: ARIEGE
A190: AIGUES MORTES | B190: 30220 | C190: GARD
A191: AIGUES VIVES | B191: 09600 | C191: ARIEGE
A192: AIGUES VIVES | B192: 11800 | C192: AUDE
A193: AIGUES VIVES | B193: 30670 | C193: GARD
A194: AIGUES VIVES | B194: 34210 | C194: HERAULT
A195: AIGUEZE | B195: 30760 | C195: GARD
A196: AIGUILHE | B196: 43000 | C196: HAUTE LOIRE
A197: AIGUILLES | B197: 05470 | C197: HAUTES ALPES
A198: AIGUILLON | B198: 47190 | C198: LOT ET GARONNE
A199: AIGUINES | B199: 83630 | C199: VAR
A200: AIGURANDE | B200: 36140 | C200: INDRE
... 4300 more rows

Sheet Feuil1

Sheet filtre2
A2: =1 -> 1
A4: CP | B4: Ville
A5: 64460 | B5: AAST
A6: 55130 | B6: ABAINVILLE
A7: 59265 | B7: ABANCOURT
A8: 60220 | B8: ABANCOURT
A9: 54610 | B9: ABAUCOURT
A10: 55400 | B10: ABAUCOURT HAUTECOURT
A11: 25320 | B11: ABBANS DESSOUS
A12: 25440 | B12: ABBANS DESSUS
A13: 44170 | B13: ABBARETZ
A14: 20243 | B14: ABBAZIA
A15: 02300 | B15: ABBECOURT
A16: 60430 | B16: ABBECOURT
A17: 25340 | B17: ABBENANS
A18: 80100 | B18: ABBEVILLE
A19: 91150 | B19: ABBEVILLE LA RIVIERE
A20: 54800 | B20: ABBEVILLE LES CONFLANS
A21: 60480 | B21: ABBEVILLE ST LUCIEN
A22: 25310 | B22: ABBEVILLERS
A23: 34290 | B23: ABEILHAN
A24: 70300 | B24: ABELCOURT
A25: 64160 | B25: ABERE
A26: 39500 | B26: ABERGEMENT LA RONCE
A27: 39600 | B27: ABERGEMENT LE GRAND
A28: 39800 | B28: ABERGEMENT LE PETIT
A29: 39110 | B29: ABERGEMENT LES THESY
A30: 39120 | B30: ABERGEMENT ST JEAN
A31: 29870 | B31: ABERWRACH
A32: 64150 | B32: ABIDOS
A33: 37160 | B33: ABILLY
A34: 64390 | B34: ABITAIN
A35: 24300 | B35: ABJAT SUR BANDIAT
A36: 62153 | B36: ABLAIN ST NAZAIRE
A37: 80320 | B37: ABLAINCOURT PRESSOIRE
A38: 62116 | B38: ABLAINZEVELLE
A39: 51240 | B39: ABLANCOURT
A40: 95450 | B40: ABLEIGES
A41: 78660 | B41: ABLIS
A42: 14600 | B42: ABLON
A43: 94480 | B43: ABLON SUR SEINE
A44: 42380 | B44: ABOEN
A45: 54115 | B45: ABONCOURT
A46: 57920 | B46: ABONCOURT
A47: 70500 | B47: ABONCOURT GESINCOURT
A48: 57590 | B48: ABONCOURT SUR SEILLE
A49: 74360 | B49: ABONDANCE
A50: 28570 | B50: ABONDANT
A51: 64360 | B51: ABOS
A52: 57560 | B52: ABRESCHVILLER
A53: 03200 | B53: ABREST
A54: 05460 | B54: ABRIES
A55: 59215 | B55: ABSCON
A56: 16500 | B56: ABZAC
A57: 33230 | B57: ABZAC
A58: 25250 | B58: ACCOLANS
A59: 89460 | B59: ACCOLAY
A60: 07160 | B60: ACCONS
A61: 64490 | B61: ACCOUS
A62: 57340 | B62: ACHAIN
A63: 57410 | B63: ACHEN
A64: 67204 | B64: ACHENHEIM
A65: 18250 | B65: ACHERES
A66: 78260 | B66: ACHERES
A67: 77760 | B67: ACHERES LA FORET
A68: 02800 | B68: ACHERY
A69: 80560 | B69: ACHEUX EN AMIENOIS
A70: 80210 | B70: ACHEUX EN VIMEU
A71: 62320 | B71: ACHEVILLE
A72: 70180 | B72: ACHEY
A73: 62217 | B73: ACHICOURT
A74: 62121 | B74: ACHIET LE GRAND
A75: 62121 | B75: ACHIET LE PETIT
A76: 58110 | B76: ACHUN
A77: 60690 | B77: ACHY
A78: 35690 | B78: ACIGNE
A79: 27800 | B79: ACLOU
A80: 27570 | B80: ACON
A81: 97600 | B81: ACOUA
A82: 62144 | B82: ACQ
A83: 14220 | B83: ACQUEVILLE
A84: 50440 | B84: ACQUEVILLE
A85: 27400 | B85: ACQUIGNY
A86: 62380 | B86: ACQUIN WESTBECOURT
A87: 02200 | B87: ACY
A88: 60620 | B88: ACY EN MULTIEN
A89: 08300 | B89: ACY ROMANCE
A90: 57580 | B90: ADAINCOURT
A91: 78113 | B91: ADAINVILLE
A92: 25360 | B92: ADAM LES PASSAVANT
A93: 25530 | B93: ADAM LES VERCEL
A94: 67320 | B94: ADAMSWILLER
A95: 65260 | B95: ADAST
A96: 65100 | B96: ADE
A97: 57380 | B97: ADELANGE
A98: 70200 | B98: ADELANS ET LE VAL DE BITH
A99: 65240 | B99: ADERVIELLE POUCHERGUES
A100: 79200 | B100: ADILLY
A101: 62116 | B101: ADINFER
A102: 34230 | B102: ADISSAN
A103: 88270 | B103: ADOMPT
A104: 45230 | B104: ADON
A105: 86430 | B105: ADRIERS
A106: 94390 | B106: AEROPORT D ORLY
A107: 20167 | B107: AFA
A108: 98719 | B108: AFAAHITI
A109: 19260 | B109: AFFIEUX
A110: 54800 | B110: AFFLEVILLE
A111: 69170 | B111: AFFOUX
A112: 54740 | B112: AFFRACOURT
A113: 62380 | B113: AFFRINGUES
A114: 31230 | B114: AGASSAC
A115: 83530 | B115: AGAY
A116: 34300 | B116: AGDE
A117: 34210 | B117: AGEL
A118: 47000 | B118: AGEN
A119: 12630 | B119: AGEN D AVEYRON
A120: 21700 | B120: AGENCOURT
A121: 80370 | B121: AGENVILLE
A122: 80150 | B122: AGENVILLERS
A123: 52340 | B123: AGEVILLE
A124: 21410 | B124: AGEY
A125: 20270 | B125: AGHIONE
A126: 54770 | B126: AGINCOURT
A127: 47350 | B127: AGME
A128: 47800 | B128: AGNAC
A129: 43100 | B129: AGNAT
A130: 50180 | B130: AGNEAUX
A131: 60600 | B131: AGNETZ
A132: 62161 | B132: AGNEZ LES DUISANS
A133: 02340 | B133: AGNICOURT ET SECHELLES
A134: 62690 | B134: AGNIERES
A135: 80290 | B135: AGNIERES
A136: 05250 | B136: AGNIERES EN DEVOLUY
A137: 38150 | B137: AGNIN
A138: 64400 | B138: AGNOS
A139: 62217 | B139: AGNY
A140: 50230 | B140: AGON COUTAINVILLE
A141: 24460 | B141: AGONAC
A142: 34190 | B142: AGONES
A143: 03210 | B143: AGONGES
A144: 17350 | B144: AGONNAY
A145: 65400 | B145: AGOS VIDALOS
A146: 16110 | B146: AGRIS
A147: 17500 | B147: AGUDELLE
A148: 12520 | B148: AGUESSAC
A149: 02190 | B149: AGUILCOURT
A150: 81470 | B150: AGUTS
A151: 14400 | B151: AGY
A152: 64220 | B152: AHAXE ALCIETTE BASCASSAN
A153: 64210 | B153: AHETZE
A154: 88500 | B154: AHEVILLE
A155: 53940 | B155: AHUILLE
A156: 23150 | B156: AHUN
A157: 21121 | B157: AHUY
A158: 59149 | B158: AIBES
A159: 25750 | B159: AIBRE
A160: 64120 | B160: AICIRITS CAMOU SUHAST
A161: 79230 | B161: AIFFRES
A162: 30700 | B162: AIGALIERS
A163: 08090 | B163: AIGLEMONT
A164: 39110 | B164: AIGLEPIERRE
A165: 27120 | B165: AIGLEVILLE
A166: 04510 | B166: AIGLUN
A167: 06910 | B167: AIGLUN
A168: 32290 | B168: AIGNAN
A169: 21510 | B169: AIGNAY LE DUC
A170: 34210 | B170: AIGNE
A171: 72650 | B171: AIGNE
A172: 14710 | B172: AIGNERVILLE
A173: 31550 | B173: AIGNES
A174: 16190 | B174: AIGNES ET PUYPEROUX
A175: 80210 | B175: AIGNEVILLE
A176: 51150 | B176: AIGNY
A177: 79370 | B177: AIGONNAY
A178: 16140 | B178: AIGRE
A179: 31280 | B179: AIGREFEUILLE
A180: 17290 | B180: AIGREFEUILLE D AUNIS
A181: 44140 | B181: AIGREFEUILLE SUR MAINE
A182: 30350 | B182: AIGREMONT
A183: 52400 | B183: AIGREMONT
A184: 78240 | B184: AIGREMONT
A185: 89800 | B185: AIGREMONT
A186: 73610 | B186: AIGUEBELETTE LE LAC
A187: 73220 | B187: AIGUEBELLE
A188: 73260 | B188: AIGUEBLANCHE
A189: 81200 | B189: AIGUEFONDE
A190: 63260 | B190: AIGUEPERSE
A191: 69790 | B191: AIGUEPERSE
A192: 09240 | B192: AIGUES JUNTES
A193: 30220 | B193: AIGUES MORTES
A194: 09600 | B194: AIGUES VIVES
A195: 11800 | B195: AIGUES VIVES
A196: 30670 | B196: AIGUES VIVES
A197: 34210 | B197: AIGUES VIVES
A198: 30760 | B198: AIGUEZE
A199: 43000 | B199: AIGUILHE
A200: 05470 | B200: AIGUILLES
A201: 47190 | B201: AIGUILLON
A202: 83630 | B202: AIGUINES
... 38752 more rows
